lending/lending_fUSD_20250121
["ID","MTS","AMOUNT","RATE_DAILY","PERIOD"]
[349904627,1737489032870,-500.0,0.00020864,2]
[349904629,1737489032882,-500.0,0.00020864,2]
[349904631,1737489032891,-500.0,0.00020864,2]
[349904633,1737489032900,-500.0,0.00020864,2]
[349904635,1737489032910,-500.0,0.00020864,2]
[349904638,1737489032923,-500.0,0.00020864,2]
[349904639,1737489032933,-500.0,0.00020864,2]
[349904641,1737489032942,-500.0,0.00020864,2]
[349904643,1737489032953,-500.0,0.00020864,2]
[349904645,1737489032962,-500.0,0.00020864,2]
[349904647,1737489032972,-500.0,0.00020864,2]
[349904649,1737489032981,-500.0,0.00020864,2]
[349904651,1737489032990,-500.0,0.00020864,2]
[349904653,1737489032999,-500.0,0.00020864,2]
[349904655,1737489033008,-500.0,0.00020864,2]
[349904657,1737489033017,-504.64116049,0.00020864,2]
[349904659,1737489033027,-500.0,0.00020864,2]
[349904661,1737489033037,-500.0,0.00020864,2]
[349904663,1737489033047,-500.0,0.00020864,2]
[349904665,1737489033056,-500.0,0.00020864,2]
[349904667,1737489033065,-504.14107082,0.00020864,2]
[349904669,1737489033074,-500.0,0.00020864,2]
[349904671,1737489033084,-500.0,0.00020864,2]
[349904672,1737489033094,-500.0,0.00020864,2]
[349904675,1737489033103,-403.94299556,0.00020864,2]
[349904677,1737489033113,-500.0,0.00020864,2]
[349904678,1737489033122,-500.0,0.00020864,2]
[349904681,1737489033132,-500.0,0.00020864,2]
[349904682,1737489033142,-500.0,0.00020864,2]
[349904684,1737489033152,-500.0,0.00020864,2]
[349904686,1737489033161,-475.56438046,0.00020864,2]
[349904688,1737489033171,-500.0,0.00020864,2]
[349904690,1737489033182,-500.0,0.00020864,2]
[349904692,1737489033192,-500.0,0.00020864,2]
[349904694,1737489033202,-500.0,0.00020864,2]
[349904696,1737489033213,-500.0,0.00020864,2]
[349904698,1737489033223,-500.0,0.00020864,2]
[349904700,1737489033233,-211.59012291,0.00020864,2]
[349904702,1737489033243,-500.0,0.00020864,2]
[349904704,1737489033254,-627.76,0.00020864,2]
[349904706,1737489033264,-500.0,0.00020864,2]
[349904708,1737489033273,-500.0,0.00020864,2]
[349904710,1737489033283,-500.0,0.00020864,2]
[349904712,1737489033293,-500.0,0.00020864,2]
[349904714,1737489033303,-500.0,0.00020864,2]
[349904716,1737489033312,-500.0,0.00020864,2]
[349904718,1737489033322,-158.24509703,0.00020864,2]
[349904720,1737489033331,-500.0,0.00020864,2]
[349904722,1737489033341,-500.0,0.00020864,2]
[349904724,1737489033351,-500.0,0.00020864,2]
[349904726,1737489033360,-500.0,0.00020864,2]
[349904728,1737489033370,-500.0,0.00020864,2]
[349904730,1737489033379,-500.0,0.00020864,2]
[349904732,1737489033389,-500.0,0.00020864,2]
[349904734,1737489033399,-500.0,0.00020864,2]
[349904736,1737489033409,-500.0,0.00020864,2]
[349904738,1737489033418,-500.0,0.00020864,2]
[349904740,1737489033428,-500.0,0.00020864,2]
[349904742,1737489033437,-500.0,0.00020864,2]
[349904744,1737489033446,-350.73521681,0.00020864,2]
[349904746,1737489033457,-500.0,0.00020864,2]
[349904748,1737489033467,-500.0,0.00020864,2]
[349904750,1737489033477,-500.0,0.00020864,2]
[349904751,1737489033487,-500.0,0.00020864,2]
[349904753,1737489033497,-500.0,0.00020864,2]
[349904756,1737489033507,-500.0,0.00020864,2]
[349904758,1737489033517,-459.47571749,0.00020864,2]
[349904760,1737489033527,-500.0,0.00020864,2]
[349904762,1737489033536,-500.0,0.00020864,2]
[349904763,1737489033545,-252.88042347,0.00020864,2]
[349904765,1737489033555,-500.0,0.00020864,2]
[349904768,1737489033565,-500.0,0.00020864,2]
[349904770,1737489033575,-500.0,0.00020864,2]
[349904771,1737489033584,-500.0,0.00020864,2]
[349904773,1737489033594,-500.0,0.00020864,2]
[349904775,1737489033604,-500.0,0.00020864,2]
[349904777,1737489033614,-500.0,0.00020864,2]
[349904779,1737489033624,-500.0,0.00020864,2]
[349904782,1737489033634,-409.92520004,0.00020864,2]
[349904784,1737489033643,-500.0,0.00020864,2]
[349904786,1737489033653,-596.2,0.00020864,2]
[349904788,1737489033663,-500.0,0.00020864,2]
[349904790,1737489033672,-500.0,0.00020864,2]
[349904792,1737489033681,-500.0,0.00020864,2]
[349904794,1737489033691,-276.28,0.00020864,2]
[349904796,1737489033700,-452.56487938,0.00020864,2]
[349904798,1737489033711,-217.10593801,0.00020864,2]
[349904800,1737489033720,-500.0,0.00020864,2]
[349904802,1737489033730,-500.0,0.00020864,2]
[349904804,1737489033739,-500.0,0.00020864,2]
[349904806,1737489033750,-500.0,0.00020864,2]
[349904808,1737489033760,-500.0,0.00020864,2]
[349904810,1737489033770,-500.0,0.00020864,2]
[349904812,1737489033778,-500.0,0.00020864,2]
[349904813,1737489033788,-188.134411,0.00020864,2]
[349904815,1737489033798,-500.0,0.00020864,2]
[349904818,1737489033807,-500.0,0.00020864,2]
[349904819,1737489033816,-500.0,0.00020864,2]
[349904821,1737489033825,-500.0,0.00020864,2]
[349904823,1737489033834,-259.1936789,0.00020864,2]
[349904825,1737489033844,-883.91,0.00020864,2]
[349904827,1737489033853,-500.0,0.00020864,2]
[349904829,1737489033862,-500.0,0.00020864,2]
[349904831,1737489033876,-429.95265698,0.00020864,2]
[349904833,1737489033885,-500.0,0.00020864,2]
[349904835,1737489033895,-500.0,0.00020864,2]
[349904837,1737489033904,-197.74470323,0.00020864,2]
[349904840,1737489033915,-500.0,0.00020864,2]
[349904841,1737489033925,-500.0,0.00020864,2]
[349904844,1737489033936,-500.0,0.00020864,2]
[349904845,1737489033945,-615.644562,0.00020864,2]
[349904847,1737489033956,-500.0,0.00020864,2]
[349904850,1737489033967,-500.0,0.00020864,2]
[349904852,1737489033977,-203.09948479,0.00020864,2]
[349904854,1737489033989,-350.05158413,0.00020864,2]
[349904856,1737489033998,-500.0,0.00020864,2]
[349904857,1737489034008,-1086.18,0.00020864,2]
[349904859,1737489034019,-500.0,0.00020864,2]
[349904861,1737489034028,-396.502616,0.00020864,2]
[349904863,1737489034037,-630.55,0.00020864,2]
[349904865,1737489034047,-962.26,0.00020864,2]
[349904867,1737489034055,-500.0,0.00020864,2]
[349904869,1737489034065,-841.53,0.00020864,2]
[349904871,1737489034074,-500.0,0.00020864,2]
[349904873,1737489034084,-500.0,0.00020864,2]
[349904875,1737489034095,-500.0,0.00020864,2]
[349904877,1737489034105,-500.0,0.00020864,2]
[349904879,1737489034114,-556.8,0.00020864,2]
[349904881,1737489034124,-500.0,0.00020864,2]
[349904883,1737489034134,-500.0,0.00020864,2]
[349904885,1737489034144,-1121.51,0.00020864,2]
[349904887,1737489034154,-575.11,0.00020864,2]
[349904889,1737489034163,-500.0,0.00020864,2]
[349904891,1737489034173,-760.01,0.00020864,2]
[349904893,1737489034183,-500.0,0.00020864,2]
[349904895,1737489034193,-904.49,0.00020864,2]
[349904897,1737489034203,-500.0,0.00020864,2]
[349904899,1737489034212,-500.0,0.00020864,2]
[349904901,1737489034222,-500.0,0.00020864,2]
[349904903,1737489034231,-500.0,0.00020864,2]
[349904905,1737489034240,-500.0,0.00020864,2]
[349904907,1737489034250,-1577.07,0.00020864,2]
[349904909,1737489034259,-500.0,0.00020864,2]
[349904911,1737489034269,-1099.33,0.00020864,2]
[349904913,1737489034279,-500.0,0.00020864,2]
[349904915,1737489034288,-500.0,0.00020864,2]
[349904917,1737489034297,-1305.14,0.00020864,2]
[349904919,1737489034306,-500.0,0.00020864,2]
[349904921,1737489034315,-500.0,0.00020864,2]
[349904923,1737489034323,-500.0,0.00020864,2]
[349904925,1737489034332,-1169.27,0.00020864,2]
[349904927,1737489034341,-500.0,0.00020864,2]
[349904929,1737489034350,-500.0,0.00020864,2]
[349904930,1737489034359,-500.0,0.00020864,2]
[349904932,1737489034369,-500.0,0.00020864,2]
[349904934,1737489034378,-340.29794732,0.00020864,2]
[349904936,1737489034388,-596.17,0.00020864,2]
[349904938,1737489034398,-500.0,0.00020864,2]
[349904940,1737489034407,-500.0,0.00020864,2]
[349904942,1737489034417,-952.54,0.00020864,2]
[349904945,1737489034427,-500.0,0.00020864,2]
[349904947,1737489034437,-655.01,0.00020864,2]
[349904948,1737489034447,-500.0,0.00020864,2]
[349904949,1737489034456,-2064.35,0.00020864,2]
[349904950,1737489034465,-512.56,0.00020864,2]
[349904951,1737489034475,-805.62,0.00020864,2]
[349904952,1737489034484,-500.0,0.00020864,2]
[349904953,1737489034494,-500.0,0.00020864,2]
[349904954,1737489034502,-500.0,0.00020864,2]
[349904955,1737489034512,-642.19,0.00020864,2]
[349904956,1737489034524,-513.09,0.00020864,2]
[349904957,1737489034534,-500.0,0.00020864,2]
[349904958,1737489034543,-500.0,0.00020864,2]
[349904960,1737489034552,-500.0,0.00020864,2]
[349904962,1737489034561,-716.37,0.00020864,2]
[349904964,1737489034571,-1158.98,0.00020864,2]
[349904966,1737489034581,-277.53841886,0.00020864,2]
[349904968,1737489034590,-1018.87,0.00020864,2]
[349904970,1737489034600,-500.0,0.00020864,2]
[349904972,1737489034609,-500.0,0.00020864,2]
[349904974,1737489034619,-500.0,0.00020864,2]
[349904976,1737489034628,-500.0,0.00020864,2]
[349904978,1737489034637,-500.0,0.00020864,2]
[349904980,1737489034646,-500.0,0.00020864,2]
[349904982,1737489034656,-500.0,0.00020864,2]
[349904984,1737489034665,-500.0,0.00020864,2]
[349904986,1737489034675,-500.0,0.00020864,2]
[349904988,1737489034684,-674.63,0.00020864,2]
[349904990,1737489034694,-1173.2,0.00020864,2]
[349904991,1737489034703,-154.23836,0.00020864,2]
[349904993,1737489034712,-500.0,0.00020864,2]
[349904995,1737489034722,-538.42,0.00020864,2]
[349904997,1737489034733,-500.0,0.00020864,2]
[349904999,1737489034743,-500.0,0.00020864,2]
[349905001,1737489034752,-500.0,0.00020864,2]
[349905003,1737489034762,-500.0,0.00020864,2]
[349905005,1737489034771,-602.79399231,0.00020864,2]
[349905007,1737489034780,-517.5,0.00020864,2]
[349905009,1737489034791,-500.0,0.00020864,2]
[349905011,1737489034800,-944.49,0.00020864,2]
[349905013,1737489034809,-309.94439974,0.00020864,2]
[349905015,1737489034819,-5000.0,0.00020864,2]
[349905017,1737489034828,-500.0,0.00020865,2]
[349905019,1737489034837,-500.0,0.00020865,2]
[349905021,1737489034846,-500.0,0.00020865,2]
[349905023,1737489034855,-500.0,0.00020865,2]
[349905025,1737489034865,-500.0,0.00020865,2]
[349905027,1737489034877,-500.0,0.00020865,2]
[349905029,1737489034886,-500.0,0.00020865,2]
[349905031,1737489034895,-500.0,0.00020865,2]
[349905033,1737489034904,-500.0,0.00020865,2]
[349905035,1737489034915,-500.0,0.00020865,2]
[349905037,1737489034924,-500.0,0.00020865,2]
[349905039,1737489034934,-500.0,0.00020865,2]
[349905041,1737489034944,-500.0,0.00020865,2]
[349905043,1737489034953,-500.0,0.00020865,2]
[349905044,1737489034963,-500.0,0.00020865,2]
[349905046,1737489034972,-500.0,0.00020865,2]
[349905048,1737489034981,-500.0,0.00020865,2]
[349905050,1737489034991,-312.93,0.00020865,2]
[349905052,1737489035000,-500.0,0.00020865,2]
[349905054,1737489035009,-500.0,0.00020865,2]
[349905056,1737489035019,-500.0,0.00020865,2]
[349905058,1737489035028,-500.0,0.00020865,2]
[349905060,1737489035037,-500.0,0.00020865,2]
[349905062,1737489035046,-500.0,0.00020865,2]
[349905064,1737489035056,-500.0,0.00020865,2]
[349905066,1737489035066,-500.0,0.00020865,2]
[349905068,1737489035076,-500.0,0.00020865,2]
[349905070,1737489035085,-500.0,0.00020865,2]
[349905073,1737489035097,-554.04,0.00020865,2]
[349905074,1737489035107,-500.0,0.00020865,2]
[349905075,1737489035116,-500.0,0.00020865,2]
[349905076,1737489035125,-514.03,0.00020865,2]
[349905077,1737489035134,-500.0,0.00020865,2]
[349905078,1737489035143,-500.0,0.00020865,2]
[349905079,1737489035153,-500.0,0.00020865,2]
[349905080,1737489035162,-207.13,0.00020865,2]
[349905081,1737489035171,-194.46683062,0.00020865,2]
[349905082,1737489035181,-500.0,0.00020865,2]
[349905083,1737489035190,-500.0,0.00020865,2]
[349905084,1737489035199,-174.14,0.00020867,2]
[349905085,1737489035208,-2336.3036183,0.00020873,2]
[349905086,1737489035218,-1542.89041414,0.00020876,2]
[349905087,1737489035227,-1542.89041414,0.0002088,2]
[349905088,1737489035236,-1542.89041414,0.00020884,2]
[349905089,1737489035246,-4691.57505908,0.00020898,2]
[349905095,1737489035299,-322.29090438,0.00020898,2]
[349905097,1737489035308,-207.86711202,0.000209,2]
[349905099,1737489035317,-269.27601376,0.00020905,2]
[349905123,1737489037377,-416.53947735,0.00020863,2]
[349905124,1737489037389,-83.46052265,0.00020863,2]
[349905125,1737489037398,-480.67499559,0.00020905,2]
[349905126,1737489037407,-1542.89041414,0.0002091,2]
[349905127,1737489037416,-5013.86596346,0.0002092,2]
[349905128,1737489037425,-200.0,0.00020924,2]
[349905129,1737489037435,-200.0,0.00020941,2]
[349905130,1737489037444,-5013.86596346,0.00020941,2]
[349905131,1737489037453,-233.38022162,0.00020945,2]
[349905132,1737489037463,-275.8,0.00020954,2]
[349905133,1737489037472,-500.0,0.00020964,2]
[349905134,1737489037656,-500.0,0.00020964,2]
[349905135,1737489037666,-582.90048904,0.00020964,2]
[349905136,1737489037675,-500.0,0.00020964,2]
[349905137,1737489037685,-500.0,0.00020964,2]
[349905138,1737489037694,-577.03,0.00020964,2]
[349905139,1737489037703,-500.0,0.00020964,2]
[349905140,1737489037714,-500.0,0.00020964,2]
[349905141,1737489037723,-500.0,0.00020964,2]
[349905142,1737489037732,-500.0,0.00020964,2]
[349905143,1737489037741,-500.0,0.00020964,2]
[349905144,1737489037751,-500.0,0.00020964,2]
[349905145,1737489037760,-500.0,0.00020964,2]
[349905146,1737489037769,-500.0,0.00020964,2]
[349905147,1737489037778,-500.0,0.00020964,2]
[349905148,1737489037788,-500.0,0.00020964,2]
[349905149,1737489037797,-500.0,0.00020964,2]
[349905150,1737489037807,-500.0,0.00020964,2]
[349905151,1737489037816,-500.0,0.00020964,2]
[349905152,1737489037826,-500.0,0.00020964,2]
[349905153,1737489037835,-491.8924426,0.00020964,2]
[349905154,1737489037844,-500.0,0.00020964,2]
[349905155,1737489037853,-500.0,0.00020964,2]
[349905156,1737489037863,-500.0,0.00020964,2]
[349905157,1737489037875,-500.0,0.00020964,2]
[349905158,1737489037884,-500.0,0.00020964,2]
[349905159,1737489037893,-500.0,0.00020964,2]
[349905160,1737489037902,-500.0,0.00020964,2]
[349905161,1737489037911,-500.0,0.00020964,2]
[349905162,1737489037921,-560.51,0.00020964,2]
[349905163,1737489037930,-500.0,0.00020964,2]
[349905164,1737489037939,-500.0,0.00020964,2]
[349905165,1737489037949,-528.98,0.00020964,2]
[349905166,1737489037959,-500.0,0.00020964,2]
[349905167,1737489037970,-500.0,0.00020964,2]
[349905168,1737489037979,-500.0,0.00020964,2]
[349905169,1737489037989,-500.0,0.00020964,2]
[349905170,1737489037998,-500.0,0.00020964,2]
[349905171,1737489038009,-500.0,0.00020964,2]
[349905172,1737489038018,-500.0,0.00020964,2]
[349905173,1737489038028,-500.0,0.00020964,2]
[349905174,1737489038037,-500.0,0.00020964,2]
[349905175,1737489038046,-500.0,0.00020964,2]
[349905176,1737489038056,-500.0,0.00020964,2]
[349905177,1737489038065,-500.0,0.00020964,2]
[349905178,1737489038074,-500.0,0.00020964,2]
[349905179,1737489038084,-500.0,0.00020964,2]
[349905180,1737489038094,-500.0,0.00020964,2]
[349905181,1737489038104,-622.61,0.00020964,2]
[349905182,1737489038113,-500.71801517,0.00020964,2]
[349905183,1737489038123,-500.0,0.00020964,2]
[349905184,1737489038132,-500.0,0.00020964,2]
[349905185,1737489038141,-500.0,0.00020964,2]
[349905186,1737489038150,-500.0,0.00020964,2]
[349905187,1737489038158,-1338.02,0.00020964,2]
[349905188,1737489038167,-632.25,0.00020964,2]
[349905189,1737489038178,-500.0,0.00020964,2]
[349905190,1737489038187,-500.0,0.00020964,2]
[349905191,1737489038196,-640.49,0.00020964,2]
[349905192,1737489038205,-500.0,0.00020964,2]
[349905193,1737489038215,-500.0,0.00020964,2]
[349905194,1737489038224,-500.0,0.00020964,2]
[349905195,1737489038234,-500.0,0.00020964,2]
[349905196,1737489038243,-500.0,0.00020964,2]
[349905197,1737489038252,-1011.37,0.00020964,2]
[349905198,1737489038262,-500.0,0.00020964,2]
[349905199,1737489038271,-500.0,0.00020964,2]
[349905200,1737489038281,-500.0,0.00020964,2]
[349905202,1737489038290,-500.0,0.00020964,2]
[349905204,1737489038299,-500.0,0.00020964,2]
[349905206,1737489038308,-704.54,0.00020964,2]
[349905208,1737489038318,-500.0,0.00020964,2]
[349905210,1737489038327,-500.0,0.00020964,2]
[349905212,1737489038337,-500.0,0.00020964,2]
[349905213,1737489038346,-500.0,0.00020964,2]
[349905216,1737489038356,-500.0,0.00020964,2]
[349905218,1737489038365,-500.0,0.00020964,2]
[349905220,1737489038374,-412.45,0.00020964,2]
[349905222,1737489038384,-500.0,0.00020964,2]
[349905224,1737489038394,-500.0,0.00020964,2]
[349905226,1737489038403,-602.93,0.00020964,2]
[349905228,1737489038413,-500.0,0.00020964,2]
[349905229,1737489038422,-500.0,0.00020964,2]
[349905231,1737489038432,-500.0,0.00020964,2]
[349905234,1737489038441,-253.66,0.00020964,2]
[349905236,1737489038452,-500.0,0.00020964,2]
[349905237,1737489038461,-811.23,0.00020964,2]
[349905240,1737489038472,-500.0,0.00020964,2]
[349905242,1737489038482,-500.0,0.00020964,2]
[349905243,1737489038491,-500.0,0.00020964,2]
[349905245,1737489038501,-500.0,0.00020964,2]
[349905247,1737489038510,-500.0,0.00020964,2]
[349905249,1737489038520,-500.0,0.00020964,2]
[349905251,1737489038530,-500.0,0.00020964,2]
[349905253,1737489038539,-500.0,0.00020964,2]
[349905255,1737489038548,-500.0,0.00020964,2]
[349905257,1737489038557,-500.0,0.00020964,2]
[349905259,1737489038566,-500.0,0.00020964,2]
[349905261,1737489038575,-500.0,0.00020964,2]
[349905263,1737489038585,-2489.25,0.00020964,2]
[349905265,1737489038594,-500.0,0.00020964,2]
[349905267,1737489038604,-196.56920499,0.00020965,2]
[349905269,1737489038613,-500.0,0.00020965,2]
[349905271,1737489038622,-500.0,0.00020965,2]
[349905273,1737489038632,-500.0,0.00020965,2]
[349905275,1737489038641,-500.0,0.00020965,2]
[349905277,1737489038650,-221.16448756,0.00020965,2]
[349905279,1737489038663,-408.6149119,0.00020965,2]
[349905281,1737489038672,-500.37763053,0.00020965,2]
[349905283,1737489038681,-268.82700971,0.00020965,2]
[349905286,1737489038691,-503.95563065,0.00020965,2]
[349905288,1737489038702,-500.48308501,0.00020965,2]
[349905290,1737489038711,-502.41368314,0.00020965,2]
[349905292,1737489038724,-574.17607077,0.00020965,2]
[349905294,1737489038733,-749.95100935,0.00020976,2]
[349905295,1737489038742,-275.8,0.0002099,2]
[349905297,1737489038752,-700.0,0.00021,2]
[349905300,1737489038762,-23901.14800807,0.00021,2]
[349905302,1737489038771,-2813.05618746,0.00021,2]
[349905307,1737489038810,-670.25611655,0.00021,2]
[349905311,1737489038842,-8487.68769599,0.00021,2]
[349905313,1737489038851,-1000.0,0.00021,3]
[349905315,1737489038861,-1000.0,0.00021,3]
[349905317,1737489038875,-1000.0,0.00021,2]
[349905319,1737489038886,-1000.0,0.00021,2]
[349905321,1737489038895,-150.0,0.00021026,2]
[349905323,1737489038904,-150.0,0.00021028,2]
[349905325,1737489038914,-150.0,0.00021029,2]
[349905327,1737489038923,-150.0,0.00021032,2]
[349905329,1737489038933,-305.56260427,0.00021038,2]
[349905331,1737489038942,-150.0,0.00021044,2]
[349905333,1737489038953,-150.0,0.00021046,2]
[349905335,1737489038963,-414.46558662,0.00021047,2]
[349905337,1737489038975,-335.48542273,0.00021047,2]
[349905339,1737489038985,-150.0,0.00021051,2]
[349905341,1737489038994,-150.0,0.00021053,2]
[349905343,1737489039006,-150.0,0.00021054,2]
[349905345,1737489039015,-150.0,0.00021055,2]
[349905347,1737489039025,-150.0,0.00021057,2]
[349905349,1737489039035,-150.0,0.00021058,2]
[349905351,1737489039046,-150.0,0.00021058,2]
[349905353,1737489039056,-500.0,0.0002107,2]
[349905355,1737489039066,-150.0,0.0002107,2]
[349905357,1737489039075,-150.0,0.00021074,2]
[349905359,1737489039086,-150.0,0.00021078,2]
[349905361,1737489039095,-150.0,0.00021079,2]
[349905363,1737489039104,-150.0,0.00021081,2]
[349905365,1737489039113,-150.0,0.00021081,2]
[349905367,1737489039122,-150.0,0.00021082,2]
[349905369,1737489039132,-150.0,0.00021083,2]
[349905371,1737489039141,-150.0,0.00021083,2]
[349905373,1737489039150,-150.0,0.0002109,2]
[349905375,1737489039159,-3000.0,0.0002109,2]
[349905377,1737489039169,-150.0,0.00021091,2]
[349905379,1737489039179,-150.0,0.00021094,2]
[349905381,1737489039188,-150.0,0.00021094,2]
[349905383,1737489039198,-150.0,0.00021097,2]
[349905385,1737489039207,-150.0,0.00021097,2]
[349905387,1737489039218,-150.0,0.00021098,2]
[349905389,1737489039227,-150.0,0.00021108,2]
[349905391,1737489039237,-150.0,0.00021111,2]
[349905393,1737489039247,-150.0,0.00021111,2]
[349905395,1737489039256,-150.0,0.00021114,2]
[349905397,1737489039266,-305.56260416,0.00021116,2]
[349905398,1737489039275,-150.0,0.00021117,2]
[349905400,1737489039284,-749.95100935,0.00021117,2]
[349905402,1737489039293,-150.0,0.0002112,2]
[349905404,1737489039303,-150.0,0.00021121,2]
[349905406,1737489039313,-150.0,0.00021132,2]
[349905408,1737489039323,-150.0,0.00021133,2]
[349905411,1737489039332,-513.0,0.00021136,2]
[349905413,1737489039342,-500.0,0.00021137,2]
[349905415,1737489039351,-636.04,0.00021137,2]
[349905418,1737489039361,-280.22371811,0.00021138,2]
[349905420,1737489039370,-500.0,0.00021138,2]
[349905422,1737489039380,-500.0,0.00021138,2]
[349905424,1737489039389,-500.0,0.00021138,2]
[349905426,1737489039399,-500.0,0.00021138,2]
[349905427,1737489039409,-500.0,0.00021138,2]
[349905429,1737489039418,-500.0,0.00021138,2]
[349905431,1737489039428,-500.0,0.00021138,2]
[349905433,1737489039438,-500.0,0.00021138,2]
[349905435,1737489039447,-500.0,0.00021138,2]
[349905437,1737489039456,-433.73234482,0.00021138,2]
[349905439,1737489039466,-500.0,0.00021138,2]
[349905441,1737489039475,-500.0,0.00021138,2]
[349905443,1737489039484,-500.0,0.00021138,2]
[349905445,1737489039493,-594.58271872,0.00021138,2]
[349905447,1737489039503,-500.0,0.00021138,2]
[349905449,1737489039512,-500.0,0.00021138,2]
[349905451,1737489039522,-500.0,0.00021138,2]
[349905453,1737489039531,-500.0,0.00021138,2]
[349905455,1737489039541,-500.0,0.00021138,2]
[349905457,1737489039550,-191.42218209,0.00021138,2]
[349905482,1737489039856,-207.77857646,0.00019087,2]
[349905484,1737489039868,-500.0,0.00020864,2]
[349905486,1737489039879,-357.22142354,0.00020864,2]
[349905538,1737489040267,-142.77857646,0.00020864,2]
[349905540,1737489040277,-357.22142354,0.00020964,2]
[349905655,1737489042471,-267.415,0.00020864,2]
[349905683,1737489045406,-207.77857646,0.00019704,2]
[349905684,1737489045417,-232.585,0.00020864,2]
[349905685,1737489045426,-624.97,0.00020864,2]
[349905686,1737489045435,-502.36642354,0.00020864,2]
[349905687,1737489045446,-395.22357646,0.00020864,2]
[349905688,1737489045455,-384.777851,0.00020864,2]
[349905689,1737489045464,-142.77857646,0.00020964,2]
[349905690,1737489045474,-105.41749608,0.00020964,2]
[349905691,1737489045556,-264.569998,0.00020964,2]
[349905692,1737489045567,-130.01250592,0.00020964,2]
[349905693,1737489045740,-403.23749408,0.00020964,2]
[349905768,1737489493250,155.34,0.00010137,2]
[349905770,1737489930138,-152.37212648,0.00017748,2]
[349905771,1737490154086,-550.0,0.00015,2]
[349905772,1737490154107,-401.74405788,0.000169,2]
[349905773,1737490154129,-600.0,0.00017,2]
[349905774,1737490154149,-465.48787352,0.00017748,2]
[349905775,1737490154170,-260.94267346,0.000189,2]
[349905776,1737490154192,-1059.59630683,0.000189,2]
[349905777,1737490154213,-300.0,0.00018999,2]
[349905778,1737490154235,-2144.73194741,0.00019,2]
[349905779,1737490159143,-40.26805259,0.00019,2]
[349905780,1737490159167,-650.0,0.00019,2]
[349905786,1737490231727,-200.0,0.00019268,2]
[349905787,1737490231738,-148.89010204,0.00019498,2]
[349905788,1737490231780,-192.76989796,0.00019498,2]
[349905789,1737490231791,-457.21,0.00019558,2]
[349905790,1737490231803,-250.0,0.00019618,2]
[349905791,1737490231814,-201.27629017,0.0001971,2]
[349905792,1737490231825,-715.42,0.00019772,2]
[349905793,1737490231836,-250.0,0.0001981,2]
[349905794,1737490231847,-1000.0,0.00019815,2]
[349905795,1737490231859,-156.52,0.00019887,30]
[349905796,1737490231870,-155.34,0.00019895,2]
[349905797,1737490231881,-2773.51473195,0.0002,2]
[349905798,1737490231903,-6992.48526805,0.0002,2]
[349905799,1737490231914,-924.567231,0.0002,21]
[349905800,1737490231925,-1565.13450777,0.0002,3]
[349905801,1737490231992,-720.0,0.0002,3]
[349905802,1737490232099,-2407.77715235,0.0002,3]